lending/lending_fUSD_20240112
["ID","MTS","AMOUNT","RATE_DAILY","PERIOD"]
[311296420,1705044638565,-215.21809469,0.0002277,2]
[311296421,1705044638575,-2616.11953545,0.0002279,2]
[311296422,1705044638584,-242.56828842,0.0002279,2]
[311296423,1705044638594,-1706.52624545,0.0002279,2]
[311296424,1705044638604,-650.39761678,0.0002279,2]
[311296425,1705044638614,-155.40896049,0.0002279,2]
[311296426,1705044638623,-386.25060104,0.00022791,2]
[311296427,1705044638633,-156.48465616,0.00022791,2]
[311296428,1705044638644,-522.77333764,0.00022791,2]
[311296429,1705044638654,-158.18030294,0.00022792,2]
[311296430,1705044638664,-162.59683057,0.00022792,2]
[311296431,1705044638673,-511.38854445,0.00022792,2]
[311296432,1705044638682,-246.39576141,0.00022792,2]
[311296433,1705044638692,-530.62921059,0.00022792,2]
[311296434,1705044638702,-3849.91637634,0.00022792,2]
[311296435,1705044638711,-217.23658877,0.00022792,2]
[311296436,1705044638720,-1655.73359278,0.00022792,2]
[311296437,1705044638730,-219.95090379,0.00022792,2]
[311296439,1705044638740,-1910.32149215,0.00022792,2]
[311296441,1705044638750,-694.71140313,0.00022792,2]
[311296443,1705044638759,-9235.28768959,0.00022793,2]
[311296445,1705044638768,-200.39324646,0.00022795,2]
[311296447,1705044638778,-531.80647171,0.00022795,2]
[311296449,1705044638788,-158.41,0.00022808,2]
[311296451,1705044638797,-240.67908843,0.00022822,2]
[311296453,1705044638807,-158.41,0.0002289,2]
[311296455,1705044638816,-2484.0007831,0.00022899,2]
[311296458,1705044638825,-2570.3993,0.000229,2]
[311296460,1705044638835,-250.0,0.000229,2]
[311296462,1705044638844,-165.04143164,0.000229,2]
[311296464,1705044638853,-363.24809483,0.000229,2]
[311296466,1705044638863,-356.11908645,0.000229,2]
[311296468,1705044638872,-356.11908633,0.000229,2]
[311296470,1705044638882,-189.93516178,0.000229,2]
[311296472,1705044638891,-356.11908633,0.000229,2]
[311296474,1705044638900,-665.66358228,0.000229,2]
[311296476,1705044638910,-356.11908633,0.000229,2]
[311296478,1705044638919,-356.11908633,0.000229,2]
[311296480,1705044638929,-356.11908633,0.000229,2]
[311296481,1705044638938,-356.11908633,0.000229,2]
[311296484,1705044638948,-356.11908633,0.000229,2]
[311296486,1705044638957,-155.36,0.00022902,2]
[311296488,1705044638967,-165.04143161,0.00022902,2]
[311296490,1705044638976,-165.04143161,0.00022904,2]
[311296492,1705044638985,-165.04143161,0.00022906,2]
[311296494,1705044638994,-165.04143161,0.00022908,2]
[311296496,1705044639004,-168.82,0.00022922,2]
[311296498,1705044639013,-158.41,0.00022971,2]
[311296500,1705044639022,-336.7179586,0.00022998,2]
[311296501,1705044639031,-337.22386989,0.00022998,2]
[311296504,1705044639041,-11667.66899712,0.00022998,2]
[311296506,1705044639051,-5095.28107249,0.00022998,2]
[311296508,1705044639060,-214.91665787,0.00022998,2]
[311296510,1705044639070,-4324.48153211,0.00022998,2]
[311296512,1705044639080,-155.0,0.00022998,2]
[311296514,1705044639089,-842.13097267,0.00022998,2]
[311296516,1705044639099,-18975.85297703,0.00022998,2]
[311296518,1705044639108,-2777.17009316,0.00022998,2]
[311296520,1705044639117,-765.16043303,0.00022998,2]
[311296523,1705044639138,-12283.43506918,0.00022998,2]
[311296525,1705044639149,-10568.54777571,0.00022999,3]
[311296527,1705044639161,-232.58601557,0.00022999,2]
[311296530,1705044639172,-302.81777128,0.00022999,2]
[311296532,1705044639181,-2378.26802866,0.00022999,2]
[311296534,1705044639190,-523.86841998,0.00022999,2]
[311296536,1705044639200,-4584.59651212,0.00022999,2]
[311296538,1705044639209,-516.09965465,0.00022999,2]
[311296540,1705044639219,-514.28664798,0.00022999,2]
[311296542,1705044639229,-15167.00335785,0.00022999,2]
[311296544,1705044639238,-155.0,0.00022999,2]
[311296546,1705044639247,-237.12856079,0.00022999,2]
[311296548,1705044639257,-939.56400894,0.00022999,2]
[311296550,1705044639267,-472.04985907,0.00022999,2]
[311296552,1705044639277,-250.02290447,0.00022999,2]
[311296554,1705044639287,-288940.59187123,0.00022999,2]
[311296557,1705044639296,-158.01738611,0.00022999,2]
[311296559,1705044639306,-150.0,0.00022999,2]
[311296561,1705044639316,-150.0,0.00022999,2]
[311296563,1705044639325,-150.0,0.00022999,2]
[311296565,1705044639335,-150.0,0.00022999,2]
[311296567,1705044639344,-150.0,0.00022999,2]
[311296569,1705044639353,-150.0,0.00022999,2]
[311296571,1705044639363,-150.0,0.00022999,2]
[311296573,1705044639372,-150.0,0.00022999,2]
[311296575,1705044639381,-150.0,0.00022999,2]
[311296577,1705044639392,-150.0,0.00022999,2]
[311296579,1705044639402,-2532758.60325789,0.00023,2]
[311296581,1705044639411,-1259536.86087825,0.00023,2]
[311296591,1705044639493,-2299672.66781735,0.00023,2]
[311296593,1705044639504,-66843.38803454,0.00023,2]
[311296845,1705044643570,-14.74132522,0.000229,2]
[311296863,1705044644384,155.0,0.0002228,2]
[311296864,1705044644636,447.8203551,0.0002228,2]
[311296866,1705044646265,-341.37776111,0.000229,2]
[311296868,1705044646275,-356.11908633,0.000229,2]
[311296869,1705044646285,-317.62207656,0.00022999,2]
[311296870,1705044646294,-443.10645151,0.00023,2]
[311296871,1705044646345,-74.22405168,0.00023,2]
[311296872,1705044646375,-419.57986073,0.00023,2]
[311296873,1705044646862,14229.3833492,0.0002228,2]
[311296874,1705044657758,291.41637742,0.0002228,2]
[311296875,1705044658523,21647.35719851,0.0002228,2]
[311296876,1705044659225,2472.84586929,0.00022309,2]
[311296877,1705044663818,1095.79593955,0.0002228,2]
[311296878,1705044664396,1000.0,0.00022308,2]
[311296879,1705044674535,3184.56736085,0.00022078,2]
[311296880,1705044674595,360.26072372,0.00018318,2]
[311296881,1705044679220,407.09158123,0.0002221,2]
[311296882,1705044685040,677.81654004,0.0002221,2]
[311296883,1705044687356,6673.90915829,0.0002228,2]
[311296884,1705044706519,1078.72198885,0.00021981,2]
[311296885,1705044715569,2000.0,0.00022222,2]
[311296886,1705044751538,150.0,0.00022,2]
[311296887,1705044752575,1228.73,0.00022287,2]
[311296888,1705044766140,176.75885641,0.00022,2]
[311296889,1705044796396,159.64015468,0.00022491,2]
[311296890,1705044809368,1738.61,0.000225,2]
[311296891,1705044816044,364.5612,0.00022493,2]
[311296892,1705044822441,579.3,0.00020049,2]
[311296893,1705044822777,579.3,0.00022313,2]
[311296894,1705044863023,159.84,0.00022056,2]
[311296895,1705044863235,159.84,0.00022433,2]
[311296896,1705044881593,3308.058476,0.00022,2]
[311296897,1705044896778,204.01,0.00021829,2]
[311296898,1705044905170,314.19467934,0.00022433,2]
[311296899,1705044907206,255.74768049,0.00022433,2]
[311296900,1705044907241,157.69365201,0.00022433,2]
[311296901,1705044907983,156.18086526,0.00022365,2]
[311296902,1705044911499,307.53443581,0.00021796,2]
[311296903,1705044911519,219.67556419,0.00021796,2]
[311296904,1705044911747,155.0,0.00022433,2]
[311296905,1705044915829,155.84713853,0.00022433,2]
[311296906,1705044925722,189.04,0.00016712,2]
[311296907,1705044933858,300.0,0.00022461,2]
[311296908,1705044943473,313.38914386,0.00016712,2]
[311296909,1705044948367,284.73114923,0.00016712,2]
[311296910,1705044952478,354.00562834,0.00020325,5]
[311296911,1705044962883,155.57936621,0.00016712,2]
[311296912,1705044976701,7872.73200964,0.000225,2]
[311296913,1705044976722,10000.0,0.000225,2]
[311296914,1705044976744,2222.08799036,0.000225,2]
[311296918,1705044978222,150.0,0.00022489,2]
[311296920,1705044980576,454.16428912,0.00022417,2]
[311296921,1705044985712,150.0,0.00022,2]
[311296922,1705044999775,1101.1684,0.00022426,14]
[311296923,1705045000653,1540.31088687,0.00022494,2]
[311296924,1705045003007,302.23206722,0.00022417,2]
[311296925,1705045015414,161.1685,0.00022493,2]
[311296926,1705045022319,192.29,0.00021731,2]
[311296927,1705045026753,4013.92,0.00021731,2]
[311296928,1705045026788,200.0,0.00021716,2]
[311296929,1705045037433,336.52711819,0.00022417,2]
[311296930,1705045053845,164.79,0.00017353,2]
[311296932,1705045082377,112.50914824,0.00021836,2]
[311296933,1705045082400,45.62085176,0.00021836,2]
[311296934,1705045082597,158.13,0.00021912,2]
[311296935,1705045082824,158.13,0.00021987,2]
[311296936,1705045083230,158.13,0.00022063,2]
[311296937,1705045083658,158.13,0.00022139,2]
[311296938,1705045083859,158.13,0.00022215,2]
[311296939,1705045084451,158.13,0.00022291,2]
[311296940,1705045084839,158.13,0.00022367,2]
[311296941,1705045085061,158.13,0.00022443,2]
[311296942,1705045112393,672.0,0.00021644,2]
[311296943,1705045120578,158.60896714,0.000225,2]
[311296944,1705045125971,697.02489292,0.000225,2]
[311296945,1705045130969,2304.07734728,0.000225,2]
[311296946,1705045131808,211.4343928,0.000225,2]
[311296947,1705045132170,384.17527737,0.000225,2]
[311296948,1705045132204,200.0,0.00021679,2]
[311296949,1705045132472,524.12198441,0.000225,2]
[311296950,1705045134937,542.27999102,0.000225,2]
[311296951,1705045135581,220.79925735,0.000225,2]
[311296952,1705045136358,171.68625232,0.000225,2]
[311296953,1705045139449,214.91665787,0.000225,2]
[311296954,1705045141557,2388.21412776,0.000225,2]
[311296955,1705045141577,10000.0,0.000225,2]
[311296956,1705045141596,4358.56252525,0.000225,2]
[311296957,1705045142270,150.0,0.000225,2]
[311296958,1705045142992,2605.00000774,0.000225,2]
[311296959,1705045144110,155.0,0.000225,2]
[311296960,1705045145115,1707.23061659,0.000225,2]
[311296961,1705045145873,1024.20685042,0.00022494,2]
[311296962,1705045145892,2.66707416,0.00022494,2]
[311296963,1705045147674,232.92375042,0.000225,2]
[311296964,1705045148027,523.33688238,0.000225,2]
[311296965,1705045156114,9241.07229304,0.000225,2]
[311296966,1705045156140,10000.0,0.000225,2]
[311296967,1705045156165,10000.0,0.000225,2]
[311296968,1705045156190,4100.94823739,0.000225,2]
[311296969,1705045157733,336.52711818,0.00022417,2]
[311296970,1705045159303,523.20663738,0.000225,2]
[311296971,1705045160687,167.09,0.00021713,2]
[311296972,1705045161814,4872.22800705,0.000225,2]
[311296973,1705045161837,400.21361933,0.000225,2]
[311296974,1705045162567,487.27860519,0.000225,2]
[311296975,1705045165340,5095.28107249,0.000225,2]
[311296976,1705045195648,2000.0,0.00021689,2]
[311296977,1705045196478,697.02489292,0.000225,2]
[311296978,1705045203489,542.27999102,0.000225,2]
[311296979,1705045206350,211.4343928,0.000225,2]
[311296980,1705045215961,214.91665787,0.000225,2]
[311296981,1705045216544,351.57076838,0.000225,2]
[311296982,1705045216565,171.766114,0.000225,2]
[311296983,1705045222146,220.79925735,0.000225,2]
[311296984,1705045231285,417.6160908,0.000225,2]
[311296985,1705045249941,1388.00678831,0.00022417,2]
[311296986,1705045249980,7801.81174954,0.000225,2]
[311296987,1705045249999,2742.20716445,0.000225,2]
[311296988,1705045255188,4482.56051579,0.00022416,2]
[311296989,1705045271676,336.52711818,0.00022417,2]
[311296990,1705045274988,697.02489292,0.000225,2]
[311296991,1705045275382,1741.68030866,0.00022417,2]
[311296992,1705045275403,55.71959134,0.00022417,2]
[311296993,1705045293093,521.37,0.00019866,2]
[311296994,1705045293393,521.37,0.0002213,2]
[311296995,1705045299357,160.88,0.00022015,2]
[311296996,1705045326130,158.60896714,0.000225,2]
[311296997,1705045341121,492.06,0.00021788,2]
[311296998,1705045365876,204.01,0.00021788,2]
[311296999,1705045384285,205.0,0.0002178,2]
[311297000,1705045401107,414.3658,0.00022417,2]
[311297003,1705045458575,1214.50593978,0.00022417,2]
[311297004,1705045467166,6052.10970174,0.00022417,2]
[311297005,1705045467188,10000.0,0.00022417,2]
[311297006,1705045467208,10000.0,0.00022417,2]
[311297007,1705045467249,216327.15389826,0.00022417,2]
[311297008,1705045471358,164.79,0.0001739,2]
[311297009,1705045533594,360.10970174,0.00021737,2]
[311297010,1705045533618,102.29029826,0.00021737,2]
[311297011,1705045554440,158.13,0.000219,2]
[311297012,1705045554637,99.68940348,0.00022091,2]
[311297013,1705045554676,58.44059652,0.00022091,2]
[311297014,1705045554863,158.13,0.00022281,2]
[311297015,1705045555217,143.53910522,0.00022471,2]
[311297016,1705045555243,14.59089478,0.00022471,2]
[311297017,1705045576459,345.51880696,0.000225,2]
[311297018,1705045576479,1000.0,0.000225,2]
[311297019,1705045576499,962.34135984,0.000225,2]
[311297020,1705045587976,37.65864016,0.000225,3]
[311297021,1705045588001,113.74247984,0.000225,3]
[311297022,1705045589223,151.40112,0.000225,3]
[311297023,1705045590120,151.40112,0.000225,3]
[311297024,1705045591630,151.40112,0.000225,3]
[311297025,1705045591811,151.40112,0.000225,3]
[311297026,1705045592568,151.40112,0.000225,3]
[311297027,1705045593374,151.40112,0.000225,3]
[311297028,1705045594179,151.40112,0.000225,3]
[311297029,1705045595130,151.40112,0.000225,3]
[311297030,1705045595861,151.40112,0.000225,3]
[311297031,1705045596672,151.40112,0.000225,3]
[311297032,1705045597477,151.40112,0.000225,3]
[311297033,1705045598190,151.40112,0.000225,3]
[311297034,1705045599075,151.40112,0.000225,3]
[311297035,1705045599777,151.40112,0.000225,3]
[311297036,1705045600578,151.40112,0.000225,3]
[311297037,1705045601430,151.40112,0.000225,3]
[311297038,1705045627097,-417.6160908,0.00022501,2]
[311297039,1705045627119,-1827.08363503,0.00022502,2]
[311297040,1705045666577,1062.69269729,0.00022417,2]
[311297041,1705045669096,151.40112,0.000225,3]
[311297042,1705045670042,151.40112,0.000225,3]
[311297043,1705045670815,151.40112,0.000225,3]
[311297044,1705045671583,151.40112,0.000225,3]
[311297045,1705045672285,151.40112,0.000225,3]
[311297046,1705045672976,151.40112,0.000225,3]
[311297047,1705045673741,151.40112,0.000225,3]
[311297048,1705045674603,151.40112,0.000225,3]
[311297049,1705045675288,151.40112,0.000225,3]
[311297050,1705045675985,151.40112,0.000225,3]
[311297051,1705045677090,2000.0,0.00021758,2]
[311297052,1705045677124,151.40112,0.000225,3]
[311297053,1705045677635,151.40112,0.000225,3]
[311297054,1705045678303,151.40112,0.000225,3]
[311297055,1705045678994,151.40112,0.000225,3]
[311297056,1705045679682,151.40112,0.000225,3]
[311297057,1705045680347,151.40112,0.000225,3]
[311297058,1705045681042,151.40112,0.000225,3]
[311297059,1705045681712,151.40112,0.000225,3]
[311297060,1705045682387,151.40112,0.000225,3]
[311297061,1705045683122,151.40112,0.000225,3]
[311297062,1705045683822,151.40112,0.000225,3]
[311297063,1705045684693,151.40112,0.000225,3]
[311297064,1705045685215,151.40112,0.000225,3]
[311297065,1705045685933,151.40112,0.000225,3]
[311297066,1705045686850,151.40112,0.000225,3]
[311297067,1705045687816,151.40112,0.000225,3]
[311297068,1705045688297,151.40112,0.000225,3]
[311297069,1705045688848,151.40112,0.000225,3]
[311297070,1705045689641,151.40112,0.000225,3]
[311297071,1705045690383,151.40112,0.000225,3]
[311297072,1705045691061,151.40112,0.000225,3]
[311297073,1705045691755,151.40112,0.000225,3]
[311297074,1705045692462,151.40112,0.000225,3]
[311297075,1705045693158,151.40112,0.000225,3]
[311297076,1705045694058,151.40112,0.000225,3]
[311297077,1705045694767,151.40112,0.000225,3]
[311297078,1705045695463,151.40112,0.000225,3]
[311297079,1705045696157,151.40112,0.000225,3]
[311297080,1705045696992,151.40112,0.000225,3]
[311297081,1705045700917,151.40112,0.000225,3]
[311297082,1705045701638,151.40112,0.000225,3]
[311297083,1705045702358,151.40112,0.000225,3]
[311297084,1705045703024,151.40112,0.000225,3]
[311297085,1705045703776,151.40112,0.000225,3]
[311297086,1705045704587,151.40112,0.000225,3]
[311297087,1705045705083,151.40112,0.000225,3]
[311297088,1705045705761,151.40112,0.000225,3]
[311297089,1705045706427,151.40112,0.000225,3]
[311297090,1705045707094,151.40112,0.000225,3]
[311297091,1705045707730,151.40112,0.000225,3]
[311297092,1705045709243,151.40112,0.000225,3]
[311297093,1705045709383,151.40112,0.000225,3]
[311297094,1705045709616,151.40112,0.000225,3]
[311297095,1705045710206,151.40112,0.000225,3]
[311297096,1705045710930,151.40112,0.000225,3]
[311297097,1705045711586,151.40112,0.000225,3]
[311297098,1705045712244,151.40112,0.000225,3]
[311297099,1705045712982,151.40112,0.000225,3]
[311297100,1705045713912,151.40112,0.000225,3]
[311297101,1705045714419,151.40112,0.000225,3]
[311297102,1705045714977,151.40112,0.000225,3]
[311297103,1705045716209,151.40112,0.000225,3]
[311297104,1705045716397,151.40112,0.000225,3]
[311297105,1705045717048,151.40112,0.000225,3]
[311297106,1705045717727,151.40112,0.000225,3]
[311297107,1705045718404,151.40112,0.000225,3]
[311297108,1705045719019,151.40112,0.000225,3]
[311297109,1705045719742,151.40112,0.000225,3]
[311297110,1705045720464,151.40112,0.000225,3]
[311297111,1705045721040,151.40112,0.000225,3]
[311297112,1705045721709,151.40112,0.000225,3]
[311297113,1705045722413,151.40112,0.000225,3]
[311297114,1705045723026,151.40112,0.000225,3]
[311297115,1705045723668,151.40112,0.000225,3]
[311297116,1705045724368,151.40112,0.000225,3]
[311297117,1705045725105,151.40112,0.000225,3]
[311297118,1705045725798,151.40112,0.000225,3]
[311297119,1705045726453,151.40112,0.000225,3]
[311297120,1705045727142,151.40112,0.000225,3]
[311297121,1705045727796,151.40112,0.000225,3]
[311297122,1705045728479,151.40112,0.000225,3]
[311297123,1705045729099,151.40112,0.000225,3]
[311297124,1705045730451,151.40112,0.000225,3]
[311297125,1705045730601,151.40112,0.000225,3]
[311297126,1705045731164,151.40112,0.000225,3]
[311297127,1705045731839,151.40112,0.000225,3]
[311297128,1705045732559,151.40112,0.000225,3]
[311297129,1705045733214,151.40112,0.000225,3]
[311297130,1705045734042,151.40112,0.000225,3]
[311297131,1705045734540,151.40112,0.000225,3]
[311297132,1705045735162,151.40112,0.000225,3]
[311297133,1705045735891,151.40112,0.000225,3]
[311297134,1705045736635,151.40112,0.000225,3]
[311297135,1705045737274,151.40112,0.000225,3]
[311297136,1705045737940,151.40112,0.000225,3]
[311297137,1705045738637,151.40112,0.000225,3]
[311297138,1705045739339,151.40112,0.000225,3]
[311297139,1705045740021,151.40112,0.000225,3]
[311297140,1705045741240,151.40112,0.000225,3]
[311297141,1705045741419,151.40112,0.000225,3]
[311297142,1705045742224,151.40112,0.000225,3]
[311297143,1705045742827,151.40112,0.000225,3]
[311297144,1705045743610,151.40112,0.000225,3]
[311297145,1705045744249,151.40112,0.000225,3]
[311297146,1705045744970,151.40112,0.000225,3]
[311297147,1705045745698,151.40112,0.000225,3]
[311297148,1705045746371,151.40112,0.000225,3]
[311297149,1705045747102,151.40112,0.000225,3]
[311297150,1705045747828,151.40112,0.000225,3]
[311297151,1705045749229,151.40112,0.000225,3]
[311297152,1705045750041,151.40112,0.000225,3]
[311297155,1705045771577,459.25,0.00021868,2]
[311297156,1705045779666,469.23,0.00019944,2]
[311297157,1705045780006,469.23,0.00022208,2]
[311297160,1705045829025,159.64015465,0.00022403,2]
[311297178,1705045831360,-312.06068321,0.00022502,2]
[311297180,1705045831373,-381.79850293,0.00022502,2]
[311297181,1705045831385,-359.03835404,0.00022502,2]
[311297186,1705045831422,-437.66595974,0.00022502,2]
[311297188,1705045831434,-1954.79449143,0.00022502,2]
[311297190,1705045831444,-125.53593608,0.00022503,2]
[311297193,1705045831456,-372.80287871,0.00022503,2]
[311297195,1705045831465,-384.09294812,0.00022503,2]
[311297197,1705045831475,-170.62716999,0.00022503,2]
[311297199,1705045831484,-181.09612693,0.00022503,2]
[311297201,1705045831494,-300.0,0.00022514,2]
[311297203,1705045831503,-150.0,0.00022514,2]
[311297204,1705045831512,-150.0,0.00022514,2]
[311297206,1705045831521,-232.63554904,0.00022515,2]
[311297208,1705045831531,-2296.49276264,0.00022515,2]
[311297210,1705045831540,-568.90691851,0.00022515,2]
[311297212,1705045831549,-228.16941811,0.00022515,2]
[311297214,1705045831558,-314.05704009,0.00022515,2]
[311297216,1705045831568,-212.3087271,0.00022515,2]
[311297218,1705045831578,-691.5020362,0.00022515,2]
[311297220,1705045831587,-178.91776656,0.00022515,2]
[311297222,1705045831596,-270.00274864,0.00022515,2]
[311297224,1705045831605,-168.01582737,0.00022515,2]
[311297227,1705045831614,-9912.19082697,0.00022515,2]
[311297229,1705045831624,-4395.29925711,0.00022515,2]
[311297231,1705045831633,-742.82161517,0.00022515,2]
[311297233,1705045831642,-161.49169115,0.00022515,2]
[311297235,1705045831651,-1042.80807396,0.00022515,2]
[311297236,1705045831661,-508.5099149,0.00022515,2]
[311297237,1705045831676,-5173.74855992,0.00022516,2]
[311297238,1705045831685,-182.90926494,0.00022516,2]
[311297239,1705045831694,-899.29375232,0.00022516,2]
[311297240,1705045831704,-20083.85584515,0.00022517,2]
[311297243,1705045831733,-3964.69407762,0.00022517,2]
[311297245,1705045831744,-10925.4521482,0.00022517,2]
[311297247,1705045831756,-1270.80557788,0.00022517,2]
[311297249,1705045831771,-25721.75591605,0.00022517,2]
[311297253,1705045831783,-611.97438854,0.00022517,2]
[311297257,1705045831817,-459.2369133,0.00022517,2]
[311297258,1705045831836,-788.16460852,0.00022517,2]
[311297266,1705045831934,-4461.02589026,0.00022517,2]
[311297269,1705045831945,-1713.03735611,0.00022517,2]
[311297271,1705045831957,-393.45872412,0.00022517,2]
[311297284,1705045834015,159.64015465,0.00022451,2]
[311297291,1705045837509,-1362.01466399,0.00022517,2]
[311297292,1705045837521,-402123.42927151,0.00022517,2]
[311297293,1705045837813,-210.12,0.00022526,2]
[311297294,1705045837823,-150.0,0.00022548,2]
[311297295,1705045837833,-155.0,0.00022582,2]
[311297296,1705045837842,-1024.62,0.00022582,2]
[311297297,1705045837853,-519.8,0.00022583,2]
[311297298,1705045837862,-305.49395435,0.00022583,2]
[311297299,1705045837871,-484.97180767,0.00022583,2]
[311297300,1705045837880,-327.25269364,0.00022583,2]
[311297301,1705045837889,-161.64516203,0.00022583,2]
[311297302,1705045837898,-161.5720188,0.00022583,2]
[311297304,1705045837908,-157.23213545,0.00022583,2]
[311297306,1705045837917,-157.25741383,0.00022583,2]
[311297307,1705045837927,-264.72184123,0.00022583,2]
[311297308,1705045837936,-158.21757571,0.00022583,2]
[311297309,1705045837946,-2134.64214575,0.00022583,2]
[311297310,1705045837956,-2170.14047021,0.00022583,2]
[311297311,1705045837965,-1067.57265614,0.00022583,2]
[311297312,1705045837974,-315.24907581,0.00022583,2]
[311297313,1705045837984,-1758.45865556,0.00022583,2]
[311297314,1705045837993,-546.0789247,0.00022584,2]
[311297315,1705045838004,-37786.5775,0.00022594,2]
[311297316,1705045838014,-158.13,0.00022661,2]
[311297317,1705045838023,-159.84,0.0002281,2]
[311297318,1705045838035,-459.25,0.00022847,2]
[311297319,1705045838044,-158.13,0.00022851,2]
[311297320,1705045838055,-722.3,0.00022884,2]
[311297321,1705045838065,-558.15325618,0.00022884,2]
[311297322,1705045838074,-166.28597973,0.0002289,2]
[311297323,1705045838084,-694.71140313,0.00022897,2]
[311297324,1705045838094,-528.57068135,0.00022897,2]
[311297325,1705045838104,-514.98040546,0.00022897,2]
[311297326,1705045838114,-767.5348565,0.00022897,2]
[311297327,1705045838123,-12283.43506918,0.00022897,2]
[311297328,1705045838137,-1912.9258164,0.00022897,2]
[311297329,1705045838146,-383.66804724,0.00022898,2]
[311297330,1705045838155,-155.0,0.00022898,2]
[311297331,1705045838165,-3854.1171014,0.00022898,2]
[311297332,1705045838177,-4267.19887316,0.00022898,2]
[311297333,1705045838186,-684.58261638,0.00022899,2]
[311297334,1705045838207,-717.1,0.000229,2]
[311297335,1705045838217,-83289.0715,0.000229,2]
[311297336,1705045838227,-250.0,0.000229,2]
[311297337,1705045838237,-789.9692,0.000229,2]
[311297338,1705045838247,-178.05954326,0.000229,2]
[311297339,1705045838257,-178.05954316,0.000229,2]
[311297340,1705045838267,-178.05954316,0.000229,2]
[311297341,1705045838277,-178.05954316,0.000229,2]
[311297342,1705045838287,-684.58261637,0.00022913,2]
[311297343,1705045838297,-170.50732974,0.00022926,2]
[311297344,1705045838308,-2277.00071775,0.00022926,2]
[311297345,1705045838318,-684.58261637,0.00022926,2]
[311297346,1705045838328,-397.57165909,0.00022926,2]
[311297347,1705045838338,-171.61482204,0.00022934,2]
[311297348,1705045838348,-178.05954316,0.0002294,2]
[311297349,1705045838357,-215.30779776,0.00022976,2]
[311297350,1705045838367,-1802.0,0.00022986,2]
[311297351,1705045838377,-166.28597973,0.0002299,2]
[311297352,1705045838387,-155.0,0.00022998,2]
[311297353,1705045838397,-155.0,0.00022998,2]
[311297354,1705045838406,-403.85382049,0.00022998,2]
[311297355,1705045838416,-220.04831573,0.00022998,2]
[311297356,1705045838427,-270.43975547,0.00022998,2]
[311297357,1705045838437,-300.93559721,0.00022998,2]
[311297358,1705045838446,-155.0,0.00022998,2]
[311297359,1705045838456,-22853.734677,0.00022998,2]
[311297360,1705045838465,-242.20345528,0.00022998,2]
[311297361,1705045838475,-376.44759867,0.00022998,2]
[311297362,1705045838486,-246.33521087,0.00022998,2]
[311297363,1705045838495,-155.23300805,0.00022998,2]
[311297364,1705045838505,-155.0,0.00022998,2]
[311297365,1705045838515,-155.0,0.00022998,2]
[311297366,1705045838525,-758.05412483,0.00022998,2]
[311297367,1705045838535,-472.59679348,0.00022998,2]
[311297368,1705045838545,-155.0,0.00022998,2]
[311297369,1705045838555,-581.20878146,0.00022998,2]
[311297370,1705045838566,-1254.8177837,0.00022998,2]
[311297371,1705045838576,-155.0,0.00022999,2]
[311297372,1705045838586,-698.47028769,0.00022999,2]